Cogmind - Beta 15 @@@ ROGUE MODE // 2025.07.09 @ 23:19:20 Player: beans Result: Destroyed by S-10 Pest with Light Assault Rifle Performance ------------- Evolutions (2) 1000 Regions Visited (4) 800 Robots Destroyed (17) 85 Value Destroyed (453) 453 Prototype IDs (2) 40 Alien Tech Used (0) 0 Bonus (0) 0 TOTAL SCORE: 2378 Bonus ------- None Cogmind --------- Core Integrity 0/550 Matter 163/300 Energy 99/100 System Corruption 0% Temperature Cool (0) Movement Core (50) Location -8/Storage Parts ------- > --- POWER (1) -------- (None) > --- PROPULSION (6) --- (None) > --- UTILITY (2) ------ (None) > --- WEAPON (2) ------- (None) > --- INVENTORY (5) ---- (None) Peak State ------------ > --- POWER ------------ Heavy Ion Engine > --- PROPULSION ------- Aluminum Leg Aluminum Leg > --- UTILITY ---------- Cryofiber Web Shield Generator > --- WEAPON ----------- Cooled Plasma Cannon Autogun > --- INVENTORY -------- Autogun [Rating: 18] Favorites ----------- Power Heavy Ion Engine Engine Heavy Ion Engine Power Core Light Nuclear Core Propulsion Aluminum Leg Treads Light Treads Leg Aluminum Leg Utility Shield Generator Device Shield Generator Weapon Autogun Energy Cannon Cooled Plasma Cannon Ballistic Gun Autogun Launcher Missile Launcher Build | -11 -10 -9 -8 -8 ------- Run | Yrd Mat Mat Mat Sto Slots Evolved 4 | . . 2 2 . Power . | . . . . . Propulsion 4 | . . 2 2 . Utility . | . . . . . Weapon . | . . . . . Parts Attached 20 | 7 1 7 1 4 Power 4 | 1 . 2 . 1 Engine 3 | 1 . 2 . . Core 1 | . . . . 1 Reactor . | . . . . . Propulsion 6 | 4 1 . . 1 Treads 2 | 2 . . . . Leg 4 | 2 1 . . 1 Wheel . | . . . . . Hover . | . . . . . Flight . | . . . . . Utility 3 | . . 2 1 . Device 3 | . . 2 1 . Storage . | . . . . . Processor . | . . . . . Hackware . | . . . . . Protection . | . . . . . Artifact . | . . . . . Weapon 7 | 2 . 3 . 2 Energy Gun . | . . . . . Energy Cannon 1 | . . . . 1 Ballistic Gun 5 | 2 . 3 . . Ballistic Cannon . | . . . . . Launcher 1 | . . . . 1 Special Weapon . | . . . . . Impact Weapon . | . . . . . Slashing Weapon . | . . . . . Piercing Weapon . | . . . . . Special Melee Weapon . | . . . . . Unidentified Prototypes 2 | . . 1 . 1 Parts Lost 17 | . 2 4 . 11 Power 4 | . . 2 . 2 Propulsion 4 | . 1 . . 3 Utility 3 | . . 1 . 2 Weapon 6 | . 1 1 . 4 Highest Loss Streak 6 | . 2 2 . 6 To Critical Strikes . | . . . . . Average Backups . | . . . . . Power . | . . . . . Propulsion . | . . . . . Utility . | . . . . . Weapon . | . . . . . Tool/Special . | . . . . . Unused Backups . | . . . . . Power . | . . . . . Propulsion . | . . . . . Utility . | . . . . . Weapon . | . . . . . Tool/Special . | . . . . . Average Slot Usage (%) 49 | . 66 50 54 40 Engine 7 | . 14 6 9 5 Leg 18 | . 28 21 18 10 Device 7 | . . 6 9 12 Energy Cannon 1 | . . . . 3 Ballistic Gun 15 | . 23 16 18 9 Peak Build Rating 18 | 5 5 11 14 18 Average Rating 7 | 3 4 7 11 11 On Entrance 6 | . 5 4 11 14 Naked Turns 20 | . . . . 20 Heaviest Build 22 | 8 8 16 17 22 Greatest Support 40 | 40 20 20 20 20 Greatest Overweight (x) 3 | . . . . 3 Average Overweight (x) . | . . . . . Largest Inventory Capacity 5 | 5 5 5 5 5 Average Capacity 5 | 5 5 5 5 5 Most Carried 3 | 3 1 1 1 2 Average Carried . | . . . . . Final Capacity 5 | 5 5 5 5 5 Final Carried . | . . . . . Class Distribution -------------------- 100% | Mutant Dominant Class ---------------- Mutant | -10/Materials Mutant | -9/Materials Mutant | -8/Materials Mutant | -8/Storage Resources | -11 -10 -9 -8 -8 ----------- Run | Yrd Mat Mat Mat Sto Matter Collected 559 | 250 47 96 . 166 Remotely . | . . . . . Salvage Created 619 | . 47 108 . 464 Parts 36 | . 2 11 . 23 Haulers Intercepted . | . . . . . Recyclers Shooed 1 | . . 1 . . Parts Field Recycled . | . . . . . Retrieved Matter . | . . . . . Parts Self-Destructed . | . . . . . Prevented . | . . . . . Kills | -11 -10 -9 -8 -8 ------- Run | Yrd Mat Mat Mat Sto Combat Hostiles Destroyed 12 | . 1 4 . 7 Guns 7 | . 1 4 . 2 Cannons 4 | . . . . 4 AOE 1 | . . . . 1 Classes Destroyed 6 | . 1 3 . 2 Worker 3 | . . 1 . 2 Builder 1 | . . . . 1 Recycler 1 | . . . . 1 Swarmer 3 | . . 3 . . Grunt 7 | . 1 . . 6 Sentry 2 | . . 1 . 1 Best Kill Streak 7 | . 1 3 . 7 Combat Bots Only 5 | . 1 3 . 5 Max Kills in Single Turn 2 | . 1 1 . 2 Gunslinging . | . . . . . Exploded 1 | . . . . 1 Melee . | . . . . . Uniques/NPCs Destroyed . | . . . . . Combat | -11 -10 -9 -8 -8 -------- Run | Yrd Mat Mat Mat Sto Hostile Shots Fired 222 | . 57 21 . 144 Missed 71 | . 22 5 . 44 Hits 151 | . 35 16 . 100 Projectile 151 | . 35 16 . 100 Critical Strikes 5 | . 1 . . 4 Damage Taken 2188 | . 488 270 . 1430 Core 743 | . 112 77 . 554 Absorbed by Shields 124 | . . 47 . 77 Regen/Repaired (Parts) 81 | . . 81 . . Core Remaining (%) 78 | 100 55 80 . . Volleys Fired 83 | . 13 32 . 38 Largest 2 | . 2 2 . 2 Hottest 58 | . 40 46 . 58 Shots Fired 130 | . 25 37 . 68 Gun 105 | . 25 37 . 43 Cannon 22 | . . . . 22 Launcher 3 | . . . . 3 Special . | . . . . . Kinetic 105 | . 25 37 . 43 Thermal 22 | . . . . 22 Explosive 3 | . . . . 3 Electromagnetic . | . . . . . Robot Hit Streak 11 | . 5 3 . 11 Robot Miss Streak 5 | . 5 3 . 4 Penetration Max . | . . . . . Secondary Targets . | . . . . . Shots Hit Robots 71 | . 12 20 . 39 Core Hits 34 | . 2 10 . 22 Critical Kills . | . . . . . Critical Parts Destroyed 1 | . 1 . . . Critical Strikes 1 | . 1 . . . Destroy 1 | . 1 . . . Melee Attacks . | . . . . . Impact . | . . . . . Slashing . | . . . . . Piercing . | . . . . . Sneak Attacks . | . . . . . Combat Hostiles . | . . . . . Follow-up Attacks . | . . . . . Damage Inflicted 1348 | . 134 204 . 1010 Guns 786 | . 134 204 . 448 Cannons 346 | . . . . 346 Explosions 193 | . . . . 193 Melee . | . . . . . Ramming 23 | . . . . 23 Kinetic 786 | . 134 204 . 448 Thermal 346 | . . . . 346 Explosive 193 | . . . . 193 Electromagnetic . | . . . . . Impact . | . . . . . Slashing . | . . . . . Piercing . | . . . . . Highest Corruption . | . . . . . Average Corruption . | . . . . . Corruption Purged . | . . . . . Corruption Blocked . | . . . . . Overload Shots . | . . . . . Overflow Damage 16 | . . . . 16 Projectiles . | . . . . . Explosions 16 | . . . . 16 Melee . | . . . . . Knockbacks . | . . . . . Impact . | . . . . . Kinetic . | . . . . . Secondary . | . . . . . Self-Inflicted Damage 11 | . . . . 11 Shots . | . . . . . Rammed 3 | . . . . 3 Targets Rammed 3 | . . . . 3 Kicked . | . . . . . Crushed . | . . . . . Highest Temperature 19 | . 19 2 . 8 Average Temperature 8 | . 10 1 . 8 Received Heat Transfer 923 | . 294 6 . 623 Siege Activations . | . . . . . Martial Activations . | . . . . . Shielding Activations . | . . . . . Robots Disrupted . | . . . . . Combat Hostiles . | . . . . . Robots Corrupted . | . . . . . Combat Hostiles . | . . . . . Parts Fried . | . . . . . Impact Corruptions . | . . . . . Robots Melted . | . . . . . Combat Hostiles . | . . . . . Parts Melted . | . . . . . Heat Transferred 550 | . . . . 550 Parts Sabotaged . | . . . . . Parts Stolen . | . . . . . Parts Stripped . | . . . . . Power Chain Reactions . | . . . . . Alert | -11 -10 -9 -8 -8 ------- Run | Yrd Mat Mat Mat Sto Maximum Alert Level . | . . . . . Low Security (%) 100 | 100 100 100 100 100 Level 1 . | . . . . . Level 2 . | . . . . . Level 3 . | . . . . . Level 4 . | . . . . . Level 5 . | . . . . . High Security . | . . . . . Max Security . | . . . . . Peak Influence 86 | . 20 40 . 86 Initial . | . . . . . Average 9 | . . 6 . 22 Influence Increases 363 | . 20 105 . 238 Destroy 0b10 Robot/C 240 | . 20 80 . 140 Destroy 0b10 Robot/NC 30 | . . 5 . 25 Destroy Leader 40 | . . 20 . 20 Successful Hack 7 | . . . . 7 Destroy Structure 31 | . . . . 31 Partial Spotted 15 | . . . . 15 Influence Decreases 348 | . 20 105 . 223 Time Decay 195 | . . 75 . 120 Lost Part 153 | . 20 30 . 103 Squads Dispatched . | . . . . . Investigation . | . . . . . Extermination . | . . . . . Reinforcement . | . . . . . Assault . | . . . . . Garrison . | . . . . . Intercept . | . . . . . Searches Triggered . | . . . . . Construction Impeded . | . . . . . Haulers Reinforced . | . . . . . Active Scanning Responses . | . . . . . Cargo Convoy Interrupts . | . . . . . Stealth | -11 -10 -9 -8 -8 --------- Run | Yrd Mat Mat Mat Sto Distress Signals 4 | . 1 2 . 1 Communications Jammed . | . . . . . Distress Signals . | . . . . . Times Spotted 36 | . 9 9 . 18 Peak Tracking Total 9 | . 6 2 . 9 Tactical Retreats . | . . . . . Traps | -11 -10 -9 -8 -8 ------- Run | Yrd Mat Mat Mat Sto Traps Triggered 2 | . . 2 . . Indirectly . | . . . . . Trap Hack Attempts . | . . . . . Triggered . | . . . . . Disarmed . | . . . . . Reprogrammed . | . . . . . Reused . | . . . . . Traps Extracted . | . . . . . Installed . | . . . . . Triggered . | . . . . . Machines | -11 -10 -9 -8 -8 ---------- Run | Yrd Mat Mat Mat Sto Machines Disabled 1 | . . 1 . . Max in Single Turn 1 | . . 1 . . Machines Repaired . | . . . . . Machines Dismantled . | . . . . . Machines Sabotaged . | . . . . . Overloaded Fab Kills . | . . . . . Hacking | -11 -10 -9 -8 -8 --------- Run | Yrd Mat Mat Mat Sto Machines Accessed 2 | . . 1 . 1 Terminals 1 | . . . . 1 Fabricators . | . . . . . Repair Stations 1 | . . 1 . . Recycling Units . | . . . . . Scanalyzers . | . . . . . Garrison Access . | . . . . . Total Hacks 3 | . . 2 . 1 Successful 3 | . . 2 . 1 Failed . | . . . . . Catastrophic . | . . . . . Database Lockouts . | . . . . . Manual . | . . . . . Terminals 1 | . . . . 1 Fabricators . | . . . . . Repair Stations 2 | . . 2 . . Recycling Units . | . . . . . Scanalyzers . | . . . . . Garrison Access . | . . . . . Terminal Hacks 1 | . . . . 1 Open Door 1 | . . . . 1 Fabricator Hacks . | . . . . . Repair Station Hacks 2 | . . 2 . . Scan Component 1 | . . 1 . . Repair 1 | . . 1 . . Recycling Unit Hacks . | . . . . . Scanalyzer . | . . . . . Garrison Access Hacks . | . . . . . Unauthorized Hacks . | . . . . . Terminals . | . . . . . Fabricators . | . . . . . Repair Stations . | . . . . . Recycling Units . | . . . . . Scanalyzers . | . . . . . Garrison Access . | . . . . . Data Cores Recovered . | . . . . . Used . | . . . . . Hacking Detections 1 | . . . . 1 Full Trace Events . | . . . . . Feedback Events . | . . . . . Feedback Blocked . | . . . . . Robot Schematics Acquired . | . . . . . Robots Built . | . . . . . Authchips . | . . . . . Time . | . . . . . Total Robot Build Rating . | . . . . . Part Schematics Acquired . | . . . . . Parts Built . | . . . . . Authchips . | . . . . . Time . | . . . . . Total Part Build Rating . | . . . . . Parts Repaired 1 | . . 1 . . Time 26 | . . 26 . . Parts Recycled . | . . . . . Recycled Matter . | . . . . . Retrieved Matter . | . . . . . Retrieved Components . | . . . . . Parts Scanalyzed . | . . . . . Part Schematics Acquired . | . . . . . Parts Damaged . | . . . . . Bothacking | -11 -10 -9 -8 -8 ------------ Run | Yrd Mat Mat Mat Sto Used RIF Installer . | . . . . . Robots Hacked . | . . . . . Non-combat . | . . . . . Combat . | . . . . . Robot Hacks Applied . | . . . . . Relay Couplers Released . | . . . . . Fabnet Peak Effective % . | . . . . . Robots Rewired . | . . . . . Allies Hacked . | . . . . . Hacks Repelled . | . . . . . Allies | -11 -10 -9 -8 -8 -------- Run | Yrd Mat Mat Mat Sto Total Allies . | . . . . . Largest Group . | . . . . . Highest-Rated Group . | . . . . . Highest-Rated Ally . | . . . . . Total Orders . | . . . . . Ally Attacks . | . . . . . Total Damage . | . . . . . Kills . | . . . . . Allies Corrupted . | . . . . . Allies Melted . | . . . . . Intel | -11 -10 -9 -8 -8 ------- Run | Yrd Mat Mat Mat Sto Active Infowar (turns) . | . . . . . Robot Analysis Total . | . . . . . Derelict Logs Recovered . | . . . . . Drone Launches . | . . . . . Drone Recoveries . | . . . . . Exploration | -11 -10 -9 -8 -8 ------------- Run | Yrd Mat Mat Mat Sto Turns Passed 1114 | 94 149 497 48 326 Spaces Moved 699 | 67 94 305 34 199 Core 113 | 7 . . . 106 Treads 8 | 8 . . . . Legs 578 | 52 94 305 34 93 Wheels . | . . . . . Hover . | . . . . . Flight . | . . . . . Fastest Speed 50 | 50 120 120 120 50 Average Speed 113 | 117 120 120 120 97 Slowest Speed 200 | 160 120 120 120 200 Overloaded Moves . | . . . . . Propulsion Burnouts . | . . . . . Robots Hopped . | . . . . . Potential Cave-ins . | . . . . . Cave-ins Triggered . | . . . . . Exploration Rate (%) 19 | 4 22 25 4 42 Regions Visited 4 Branch Regions 1 Pre-discovered Areas . | . . . . . Known Exits Taken . | . . . . . Unknown Exits Taken 4 | 1 1 1 1 . Scrap Searched . | . . . . . Spaces Dug . | . . . . . Terrain Destroyed 30 | . . . . 30 Melee . | . . . . . Projectile 9 | . . . . 9 AOE 21 | . . . . 21 Terrain Rammed . | . . . . . Walls Destroyed . | . . . . . Machines Disabled . | . . . . . Actions | -11 -10 -9 -8 -8 --------- Run | Yrd Mat Mat Mat Sto Total 908 | 82 108 406 41 271 Wait 75 | . . 53 6 16 Move 695 | 66 93 304 33 199 Hop . | . . . . . Pick Up 21 | 7 1 8 1 4 Fast Attach . | . . . . . Attach 20 | 5 1 7 1 6 Detach 2 | . . . . 2 Swap 5 | 2 . 1 . 2 Drop 3 | 2 . 1 . . Fire 83 | . 13 32 . 38 Melee . | . . . . . Ram 3 | . . . . 3 Kick . | . . . . . Crush . | . . . . . Escape Stasis . | . . . . . Rewire 1 | . . . . 1 Trap . | . . . . . Miscellaneous . | . . . . . Route ------- -11/Scrapyard -10/Materials -9/Materials (discovered 2 exits: [*Mat] / [*Min]) -8/Materials -8/Storage History --------- Turn | Location | Event 5 | -11/Scrapyard | Discovered new exit (range 15) 95 | -11/Scrapyard | Entered Materials 226 | -10/Materials | Discovered new exit (range 15) 244 | -10/Materials | Entered another Materials area 244 | -9/Materials | Evolved 2 slots: Propulsion x2 313 | -9/Materials | Build established: Mutant 392 | -9/Materials | Discovered new exit (range 15) 441 | -9/Materials | Discovered new exit (range 14) 639 | -9/Materials | Repaired Aluminum Leg 741 | -9/Materials | Entered another Materials area 741 | -8/Materials | Evolved 2 slots: Propulsion x2 757 | -8/Materials | Discovered new exit (range 15) 789 | -8/Materials | Entered Storage 1008 | -8/Storage | Lost 5 parts (1p2n1u1w) 1027 | -8/Storage | Core integrity fell below 50% 1098 | -8/Storage | Core integrity fell below 20% 1115 | -8/Storage | Destroyed by S-10 Pest with Light Assault Rifle Last Messages --------------- Cld. Plasma Cannon destroyed. U-05 Engineer lays Concrete. R-06 Scavenger collects Aluminum Leg. U-05 Engineer builds a Wall. Acquired Lgt. Nuclear Core. R-06 Scavenger collects Aluminum Leg. Acquired 42 matter. R-06 Scavenger collects Particle Gun. Lgt. Nuclear Core destroyed. Slammed into Y-45 Defender. U-05 Engineer lays Concrete. Acquired 63 matter. U-05 Engineer lays Concrete. R-06 Scavenger collects Aluminum Leg. U-05 Engineer lays Concrete. Acquired 12 matter. U-05 Engineer lays Concrete. U-05 Engineer builds a Wall. Cryofiber Web destroyed. Slammed into R-06 Scavenger. Map ----- +----------------------------------------------------+ | | | | | | | | | | | | | | | | | | | | | | | | | ?????????????????????????????????????????????????? | | ?????????????????????????????????????????????????? | | ?????????????????????????????????????????????????? | | ?????????????????????????????????????????????????? | | ?????????????????????????????????????????????????? | | ?????????????????????????????????????????????????? | | ?????????????????????????????????????????????????? | | ?????????????????????????????????????????????????? | | ?????????????????????????????????????????????????? | | ?????????????????????????????????????????????????? | | ?????????????????????????????????????????????????? | | ????????????????????????##+#########+##??????????? | | ??????????????########### o #??????????? | | ??????????????# #@ k r ????????? | | ??????????????# + #??????????? | | ??????????????# # ^ #######k #??????????? | | ??????????????# + #????????????????????? | | ??????????????# # #????????????????????? | | ??????????????# # #????????????????????? | | ??????????????# # #????????????????????? | | ??????????????# # #????????????????????? | | ??????????????########### #????????????????????? | | ????????????????????????# #????????????????????? | | ????????????????????????# #????????????????????? | | ????????????????????????# #????????????????????? | | ????????????????????????# #????????????????????? | | ????????????????????????# #????????????????????? | | ????????????????????????# #????????????????????? | | ????????????????????????# #????????????????????? | | ?????????????????###????# #????????????????????? | | ?????????????????#"""???# #????????????????????? | | ???????????????###"Y"#### #????????????????????? | | ???????????????? # #????????????????????? | | ???????????????? """"" # #????????????????????? | | ???????????????? """"" # #????????????????????? | | ???????????????# """"" # #????????????????????? | | ???????????????# + #????????????????????? | | ???????????????# """"" # #????????????????????? | +----------------------------------------------------+ Best States ------------- Heat Dissipation 31 Energy Generation 14 Energy Capacity 280 Matter Stores 300 Matter Capacity 300 Sight Range 16 Terrain Scan Density 10 Base Temperature (-) 100 Evasion (%) 55 Recoil Reduction 2 Item Schematics ----------------- None Robot Schematics ------------------ None Fabricated ------------ Nothing Repaired ---------- Aluminum Leg | 10% | -9/Materials Alien Tech Used ----------------- None Achievements -------------- None Challenges ------------ None Game ------ Seed SingularityCompositeFlakker Manual? 0 Play Time 00:12:26 Cumulative 44.2 hours Start 2025.07.09 @ 23:10:32 End 2025.07.09 @ 23:19:20 Sessions 1 Manual Loads 0 Difficulty Rogue Special Mode None Game No. 208 Rogue 208 Adventurer 0 Explorer 0 Win Type - Total 0 Types 0/0/0/0/0/0/0/0/0/0 Lore% 32 Gallery% 26 Achievement% 22 Wizard Run 0 Options --------- Layout 2 ASCII 0 Keyboard 0 Movement Mouse Keybinds 0 Fullscreen 1 Font 24/Smallcaps Map View 50x44 Zoom Use 0% Tactical HUD 0 Map Filters NONE Filters NONE Steam 1 RUN: e671a73f-83df-4325-89c7-fba320254a53